bitfinex-derivatives/quotes_ETHF0:USTF0_20220103
["timestamp","ask_amount","ask_price","bid_price","bid_amount"]
[1641200922980,0.78636269,3815.1,3814.9,1.17109855]
[1641200924681,0.78636269,3815.1,3814.8,1.17109855]
[1641200925584,2.00479,3815.2,3815.0,0.88537633]
[1641200925783,2.00479,3815.2,3814.7,0.07836514]
[1641200926484,2.00479,3815.2,3814.5,1.47166528]
[1641200927085,2.00479,3815.2,3814.5,2.02896707]
[1641200928386,2.00479,3815.2,3814.5,1.47166528]
[1641200928588,2.00479,3815.2,3814.4,3.31490976]
[1641200930789,2.00479,3815.2,3814.4,2.00479]
[1641200930989,1.11874378,3814.6,3814.4,2.00479]
[1641200931190,1.90434378,3814.6,3814.4,2.00479]
[1641200933191,1.90434378,3814.6,3814.4,2.234781]
[1641200933392,1.90434378,3814.6,3814.4,2.00479]
[1641200935899,1.90434378,3814.6,3814.4,2.234781]
[1641200936497,1.90434378,3814.6,3814.4,2.00479]
[1641200937398,1.90434378,3814.6,3814.4,2.234781]
[1641200937701,1.90434378,3814.6,3814.4,2.00479]
[1641200938399,1.90434378,3814.6,3814.4,2.234781]
[1641200938799,1.90434378,3814.6,3814.4,2.00479]
[1641200939601,1.90434378,3814.6,3814.5,0.229991]
[1641200939802,1.90434378,3814.6,3814.4,2.00479]
[1641200940803,1.90434378,3814.6,3814.5,0.229991]
[1641200941004,1.90434378,3814.6,3814.4,2.00479]
[1641200942803,1.90434378,3814.6,3814.5,0.229991]
[1641200945205,1.90434378,3814.6,3814.4,2.00479]
[1641200945406,1.90434378,3814.6,3814.4,2.234781]
[1641200946806,1.90434378,3814.6,3814.4,2.00479]
[1641200947608,1.90434378,3814.6,3814.1,29.9246]
[1641200947609,5.24341954,3814.4,3814.1,29.9246]
[1641200947907,5.24341954,3814.4,3814.0,2.00479]
[1641200948607,0.95214264,3814.3,3814.0,2.00479]
[1641200956320,0.95214264,3814.3,3814.0,1.21818091]
[1641200961926,0.78653526,3814.2,3814.0,1.21818091]
[1641200965929,0.78653526,3814.2,3814.1,0.229991]
[1641200966431,0.78653526,3814.2,3814.0,1.21818091]
[1641200966730,0.78653526,3814.2,3814.1,0.229991]
[1641200966933,0.78653526,3814.2,3814.0,1.21818091]
[1641200967831,0.78653526,3814.2,3814.0,1.44817191]
[1641200968633,0.78653526,3814.2,3814.0,1.21818091]
[1641200968833,0.78653526,3814.2,3814.1,0.229991]
[1641200969033,0.78653526,3814.2,3814.0,1.21818091]
[1641200971135,0.78653526,3814.2,3814.1,0.229991]
[1641200972436,0.78653526,3814.2,3814.0,1.21818091]
[1641200974740,0.78653526,3814.2,3814.1,0.229991]
[1641200975038,0.78653526,3814.2,3814.0,1.21818091]
[1641200976638,0.78653526,3814.2,3814.0,1.44817191]
[1641200977942,0.78653526,3814.2,3814.0,1.21818091]
[1641200978342,0.78653526,3814.2,3814.1,0.229991]
[1641200978543,0.78653526,3814.2,3814.0,1.21818091]
[1641200979344,0.78653526,3814.2,3814.1,0.229991]
[1641200979545,0.78653526,3814.2,3814.0,1.21818091]
[1641200980244,0.78653526,3814.2,3814.1,0.229991]
[1641200980847,0.78653526,3814.2,3814.0,1.21818091]
[1641200983652,0.78653526,3814.2,3814.1,0.229991]
[1641200983951,0.78653526,3814.2,3814.0,1.21818091]
[1641200986555,0.78653526,3814.2,3814.1,0.229991]
[1641200987055,0.78653526,3814.2,3814.0,1.21818091]
[1641200988056,0.78653526,3814.2,3814.0,2.09836212]
[1641200988957,0.78653526,3814.2,3814.0,1.21818091]
[1641200989157,0.78653526,3814.2,3814.0,1.44817191]
[1641200989357,2.28653526,3814.2,3814.0,1.21818091]
[1641200989557,0.78653526,3814.2,3814.0,1.21818091]
[1641200989961,0.78653526,3814.2,3814.0,2.09836212]
[1641200990958,0.78653526,3814.2,3814.1,0.229991]
[1641200993159,0.78653526,3814.2,3814.0,2.09836212]
[1641200994258,0.78653526,3814.2,3814.0,2.32835312]
[1641200994658,0.78653526,3814.2,3814.0,2.09836212]
[1641200995261,2.28653526,3814.2,3814.0,2.09836212]
[1641200995460,0.78653526,3814.2,3814.0,2.09836212]
[1641200996659,0.78653526,3814.2,3814.0,1.21818091]
[1641200998060,0.94383188,3814.3,3813.9,0.88018121]
[1641200999364,0.94383188,3814.3,3813.8,0.88018121]
[1641201000865,1.5,3814.0,3813.8,0.88018121]
[1641201001965,2.44383188,3814.3,3813.8,0.88018121]
[1641201002166,1.5,3814.0,3813.8,0.88018121]
[1641201002767,1.5,3814.0,3813.7,0.55751324]
[1641201002768,1.5,3814.0,3813.6,1.43769445]
[1641201003165,2.44390026,3814.0,3813.6,0.65069445]
[1641201003966,2.44390026,3814.0,3813.6,0.09318121]
[1641201004367,1.5,3813.8,3813.6,0.09318121]
[1641201004567,2.73037069,3813.8,3813.5,2.00479]
[1641201004768,1.187677,3813.7,3813.5,2.00479]
[1641201006172,1.28060324,3813.7,3813.5,2.00479]
[1641201012678,2.78060324,3813.7,3813.5,2.00479]
[1641201012878,2.78060324,3813.7,3813.1,1.17382207]
[1641201013080,1.5,3813.5,3812.9,2.21507683]
[1641201013280,3.89441412,3813.2,3812.3,2.22330056]
[1641201013480,3.0,3813.0,3812.3,2.22330056]
[1641201013781,3.6521,3813.0,3812.5,1.7720722]
[1641201014179,4.00958,3812.6,3812.5,1.7720722]
[1641201014580,4.00958,3812.6,3812.4,0.55767132]
[1641201015080,1.07909475,3812.5,3812.4,0.55767132]
[1641201015680,1.17202099,3812.5,3812.1,0.55767132]
[1641201016080,2.00479,3812.2,3812.1,0.55767132]
[1641201016280,2.51669,3812.2,3812.1,0.55767132]
[1641201016780,2.51669,3812.2,3811.7,1.7720722]
[1641201016781,2.51669,3812.2,3811.9,0.55767132]
[1641201017984,2.51669,3812.2,3811.7,0.55767132]
[1641201018183,2.51669,3812.2,3811.7,0.68582832]
[1641201018984,2.51669,3812.2,3811.8,0.55767132]
[1641201019985,2.00479,3812.2,3811.8,0.55767132]
[1641201022291,2.00479,3812.2,3811.4,1.31116933]
[1641201022292,2.00479,3812.2,3811.5,0.55767132]
[1641201022491,2.69079,3812.2,3811.5,0.55767132]
[1641201023793,3.02742878,3812.1,3811.5,0.55767132]
[1641201024193,3.02742878,3812.1,3811.9,0.88370362]
[1641201025398,3.02742878,3812.1,3812.0,0.229991]
[1641201025800,2.00479,3812.2,3812.0,0.229991]
[1641201026800,2.00479,3812.6,3812.2,11.26]
[1641201027001,1.18430229,3813.3,3812.2,11.26]
[1641201027604,1.18430229,3813.3,3812.3,1.5]
[1641201027806,4.35796142,3813.4,3812.4,0.88370362]
[1641201028205,2.00479,3813.2,3812.4,0.88370362]
[1641201028809,2.00479,3813.2,3812.5,0.88370362]
[1641201029005,2.00479,3813.2,3812.6,0.128157]
[1641201030711,2.00479,3813.2,3812.6,1.01186062]
[1641201031317,2.00479,3813.2,3812.6,0.128157]
[1641201031913,2.00479,3813.2,3812.5,0.88370362]
[1641201032916,2.00479,3813.2,3812.3,13.26479]
[1641201032917,2.00479,3813.2,3812.4,1.44138872]
[1641201034119,2.00479,3813.2,3812.5,0.128157]
[1641201036322,2.00479,3813.2,3812.4,0.88370362]
[1641201037121,2.00479,3813.2,3812.5,0.88370362]
[1641201037520,2.00479,3813.2,3812.5,1.44138346]
[1641201037721,5.24589938,3812.6,3812.5,1.44138346]
[1641201037922,5.95659938,3812.6,3812.5,1.44138346]
[1641201038522,0.7107,3812.6,3812.5,0.88370362]
[1641201039624,0.7107,3812.6,3812.2,0.88370362]
[1641201040325,2.71549,3812.6,3812.2,0.88370362]
[1641201041226,2.71549,3812.6,3812.2,1.44139896]
[1641201042126,2.71549,3812.6,3812.1,1.01186062]
[1641201043631,2.71549,3812.6,3812.4,0.88370362]
[1641201044234,2.71549,3812.6,3812.4,1.11369462]
[1641201044632,2.71549,3812.6,3812.4,0.88370362]
[1641201045532,2.71549,3812.6,3811.8,1.47325335]
[1641201045533,2.71549,3812.6,3812.2,0.88370362]
[1641201047734,2.71549,3812.6,3812.3,0.88370362]
[1641201047936,2.71549,3812.6,3812.4,0.229991]
[1641201048534,2.71549,3812.6,3812.3,0.88370362]
[1641201049436,2.71549,3812.6,3812.4,0.229991]
[1641201051743,2.71549,3812.6,3812.3,0.88370362]
[1641201051940,2.71549,3812.6,3812.5,0.229991]
[1641201052141,2.71549,3812.6,3812.3,0.88370362]
[1641201052743,2.71549,3812.6,3812.4,0.229991]
[1641201054445,2.71549,3812.6,3812.3,0.88370362]
[1641201055247,2.71549,3812.6,3812.4,0.229991]
[1641201055846,2.71549,3812.6,3812.3,0.88370362]
[1641201056146,2.71549,3812.6,3812.4,0.229991]
[1641201056447,2.71549,3812.6,3812.3,0.88370362]
[1641201057247,2.71549,3812.6,3812.4,0.229991]
[1641201057847,2.71549,3812.6,3812.3,0.88370362]
[1641201059251,2.71549,3812.6,3812.4,0.229991]
[1641201061453,2.71549,3812.6,3812.3,0.88370362]
[1641201062053,2.71549,3812.6,3812.2,1.44143863]
[1641201062854,2.71549,3812.6,3812.2,0.55773501]
[1641201063056,2.71549,3812.6,3812.4,1.1782715]
[1641201063855,2.71549,3812.6,3812.5,0.88388914]
[1641201065365,2.71549,3812.6,3812.3,1.1782715]
[1641201065568,2.71549,3812.6,3812.4,1.1782715]
[1641201066669,3.89979229,3812.6,3812.3,1.1782715]
[1641201067468,3.89979229,3812.6,3812.5,0.88449136]
[1641201068268,2.71549,3812.6,3812.5,0.88449136]
[1641201070669,2.71549,3812.6,3812.2,1.1782715]
[1641201070868,2.71549,3812.6,3812.3,1.1782715]
[1641201071068,3.90446822,3812.6,3812.3,1.1782715]
[1641201071971,2.71549,3812.6,3812.3,1.1782715]
[1641201072969,2.71549,3812.6,3812.4,0.229991]
[1641201073169,2.71549,3812.6,3812.3,1.1782715]
[1641201073571,2.71549,3812.6,3812.4,1.1782715]
[1641201076273,1.45418912,3812.5,3812.4,1.1782715]
[1641201077173,1.96508912,3812.5,3812.4,1.1782715]
[1641201077376,1.07413589,3812.3,3812.1,1.47325335]
[1641201077574,1.00159559,3812.4,3812.0,1.47325335]
[1641201078374,1.00159559,3812.4,3811.8,2.77463236]
[1641201079476,0.09296607,3812.3,3811.8,2.77463236]
[1641201081378,0.09296607,3812.3,3811.8,2.03098836]
[1641201081579,0.09296607,3812.3,3812.2,0.88492462]
[1641201082582,0.09296607,3812.3,3811.8,0.55773501]
[1641201082583,0.09296607,3812.3,3812.1,0.88492462]
[1641201083582,0.09296607,3812.3,3811.7,2.00479]
[1641201083583,0.09296607,3812.3,3811.7,2.88971462]
[1641201086488,0.09296607,3812.4,3811.9,0.88492462]
[1641201087790,0.09296607,3812.4,3811.7,2.88971462]
[1641201088691,1.27978583,3812.4,3811.7,2.88971462]
[1641201091094,0.09296607,3812.4,3811.8,1.44270618]
[1641201092995,0.09296607,3812.4,3811.8,0.88492462]
[1641201093194,1.27978583,3812.4,3811.7,2.88971462]
[1641201094093,1.27978583,3812.4,3811.8,0.128157]
[1641201095295,1.27978583,3812.4,3811.7,2.88971462]
[1641201095499,0.09296607,3812.4,3811.8,0.88492462]
[1641201096697,0.09296607,3812.4,3811.8,1.44271418]
[1641201097796,0.09296607,3812.4,3811.8,0.88492462]
[1641201097999,0.09296607,3812.4,3811.7,2.88971462]
[1641201098399,1.27978583,3812.4,3811.7,2.88971462]
[1641201100298,1.27978583,3812.4,3811.7,3.01787162]
[1641201100899,1.27978583,3812.4,3811.7,1.01308162]
[1641201101098,1.27978583,3812.4,3811.7,0.88492462]
[1641201101500,1.27978583,3812.4,3811.7,2.88971462]
[1641201102606,1.27978583,3812.4,3811.7,2.00479]
[1641201103206,1.13072176,3812.0,3811.7,2.00479]
[1641201103407,1.13072176,3812.0,3811.8,0.229991]
[1641201106611,1.13072176,3812.0,3811.8,1.11491562]
[1641201107312,1.13072176,3812.0,3811.8,0.88492462]
[1641201108413,1.13072176,3812.0,3811.8,1.44271545]
[1641201108613,1.13072176,3812.0,3811.8,1.67270645]
[1641201109014,5.24716789,3811.6,3811.5,1.1774562]
[1641201109216,5.24716789,3811.6,3811.2,1.47325335]
[1641201109217,5.76316789,3811.6,3811.2,1.47325335]
[1641201109616,2.00479,3811.3,3811.2,1.47325335]
[1641201110417,2.00479,3811.3,3811.2,1.70324435]
[1641201110616,2.00479,3811.3,3811.2,1.47325335]
[1641201110818,2.00479,3811.3,3810.6,34.10570056]
[1641201110819,2.00479,3811.3,3810.6,33.35565335]
[1641201111017,2.00479,3811.3,3810.6,1.47325335]
[1641201112020,2.00479,3811.3,3810.4,14.73804335]
[1641201112818,2.00479,3811.3,3810.5,0.128157]
[1641201115023,2.00479,3811.3,3810.4,3.47804335]
[1641201115624,2.00479,3811.3,3810.4,14.73804335]
[1641201115825,2.00479,3811.3,3810.4,13.26479]
[1641201116027,2.00479,3811.3,3810.5,0.128157]
[1641201117827,2.00479,3811.3,3810.4,3.47804335]
[1641201119228,2.00479,3811.3,3810.4,2.00479]
[1641201119929,2.00479,3811.3,3810.5,11.388157]
[1641201120329,2.00479,3811.3,3810.6,1.1808849]
[1641201121235,2.00479,3811.3,3810.7,1.1808849]
[1641201125536,1.18737209,3811.1,3811.0,1.1808849]
[1641201126036,1.18737209,3811.1,3811.0,1.4108759]
[1641201127139,1.18737209,3811.1,3811.0,1.1808849]
[1641201127637,1.18737209,3811.1,3811.0,1.4108759]
[1641201127838,1.18737209,3811.1,3811.0,1.1808849]
[1641201129742,1.28650215,3811.1,3811.0,1.1808849]
[1641201130039,1.28650215,3811.1,3811.0,1.4108759]
[1641201130239,1.48037395,3811.4,3811.0,1.4108759]
[1641201130440,1.48037395,3811.4,3811.1,11.26]
[1641201130839,1.48037395,3811.3,3811.1,11.26]
[1641201131038,1.48037395,3811.3,3811.2,0.229991]
[1641201131644,1.48037395,3811.3,3811.2,11.489991]
[1641201131841,1.48037395,3811.3,3811.2,13.494781]
[1641201132744,1.48037395,3811.7,3811.2,13.494781]
[1641201133346,1.78222991,3811.9,3811.6,0.88797863]
[1641201135048,1.78222991,3811.9,3811.7,0.229991]
[1641201135248,1.78222991,3811.9,3811.6,0.88797863]
[1641201135949,2.28306926,3812.0,3811.6,0.88797863]
[1641201136348,0.5996,3811.9,3811.6,0.88797863]
[1641201136550,2.38182991,3811.9,3811.6,0.88797863]
[1641201137551,2.38182991,3811.9,3811.3,0.88797863]
[1641201137552,2.82746027,3811.9,3811.3,0.88797863]
[1641201138353,0.5996,3811.9,3811.4,0.88797863]
[1641201138554,1.78523716,3811.7,3811.4,0.88797863]
[1641201139353,2.72967568,3811.8,3811.4,0.88797863]
[1641201140453,0.94443852,3811.8,3811.2,2.132947]
[1641201141658,2.72962938,3811.8,3811.5,0.88845382]
[1641201142660,2.72962938,3811.8,3811.4,0.88845382]
[1641201142859,1.78519086,3811.7,3811.4,0.88845382]
[1641201144064,2.72962938,3811.8,3811.4,0.88845382]
[1641201144764,2.72962938,3811.8,3811.4,1.48065382]
[1641201145164,1.78519086,3811.7,3811.4,1.48065382]
[1641201145366,1.78519086,3811.7,3811.5,0.229991]
[1641201146467,1.78519086,3811.7,3811.6,0.88845382]
[1641201146666,0.94443852,3811.8,3811.6,0.88845382]
[1641201147767,0.94443852,3811.8,3811.5,0.229991]
[1641201148568,1.70683852,3811.8,3811.3,11.26]
[1641201148969,2.89671017,3811.8,3811.3,11.26]
[1641201149670,1.18701853,3811.7,3811.3,11.26]
[1641201150571,1.18701853,3811.6,3811.3,11.26]
[1641201151471,1.28514754,3811.7,3811.3,11.26]
[1641201152071,1.18701853,3811.6,3811.3,11.26]
[1641201153172,1.18701853,3811.6,3810.9,0.88845382]
[1641201153372,5.24746682,3811.4,3810.7,1.1846051]
[1641201153773,5.24746682,3811.4,3810.6,1.1846051]
[1641201153973,2.00479,3811.2,3810.6,1.1846051]
[1641201154176,2.00479,3811.2,3810.3,1.48075637]
[1641201154177,6.74815239,3810.9,3810.3,1.48075637]
[1641201154375,7.45505239,3810.9,3810.3,1.48075637]
[1641201155379,0.93994234,3810.8,3810.3,1.48075637]
[1641201155777,2.43994234,3810.8,3810.3,1.48075637]
[1641201155978,2.00479,3810.5,3810.3,1.48075637]
[1641201156179,2.00479,3810.5,3809.8,31.47375637]
[1641201156585,2.00479,3810.5,3809.8,1.48075637]
[1641201158079,2.00479,3810.5,3809.9,0.55803324]
[1641201158478,5.2489269,3810.4,3809.9,0.55803324]
[1641201158677,1.05341773,3810.3,3809.9,0.55803324]
[1641201159077,1.05341773,3810.3,3809.7,0.55803324]
[1641201162181,5.59594038,3810.3,3809.7,0.55803324]
[1641201162683,0.1159457,3810.2,3809.7,0.55803324]
[1641201164986,5.59594038,3810.3,3809.7,0.55803324]
[1641201165788,0.11594549,3810.2,3809.7,0.55803324]
[1641201166989,1.59970795,3810.2,3809.9,1.18353855]
[1641201167487,3.09970795,3810.2,3809.7,0.55803324]
[1641201167687,1.59970795,3810.2,3809.7,0.55803324]
[1641201167889,1.48376246,3810.1,3810.0,0.55803324]
[1641201168091,2.13696246,3810.1,3810.0,0.55803324]
[1641201169192,2.25290795,3810.1,3809.7,0.55803324]
[1641201169793,0.11594549,3810.0,3809.7,0.55803324]
[1641201170598,2.13696246,3810.1,3809.6,2.00479]
[1641201170794,0.6532,3810.1,3809.6,2.00479]
[1641201170995,7.35213502,3810.3,3809.6,2.00479]
[1641201171293,2.00479,3810.5,3809.7,0.128157]
[1641201171496,2.00479,3810.5,3809.7,11.388157]
[1641201171707,2.00479,3810.5,3809.7,0.6459]
[1641201172097,7.01519582,3811.2,3810.1,2.00479]
[1641201172997,3.39553334,3810.6,3810.1,2.00479]
[1641201178307,4.14313334,3810.6,3810.1,2.00479]
[1641201184910,1.93947417,3810.3,3810.1,2.00479]
[1641201197521,1.93947417,3810.3,3810.1,2.234781]
[1641201198421,1.93947417,3810.3,3810.1,2.00479]
[1641201199420,1.93947417,3810.3,3809.6,2.00479]
[1641201200122,1.93947417,3810.3,3809.6,2.132947]
[1641201201326,1.93947417,3810.3,3809.6,2.00479]
[1641201202122,1.93947417,3810.3,3809.7,0.128157]
[1641201204022,1.93947417,3810.3,3809.6,2.00479]
[1641201205224,3.78883607,3809.9,3809.6,2.00479]
[1641201206331,3.78883607,3809.9,3809.3,2.00479]
[1641201206931,1.31842686,3809.8,3809.7,0.55818085]
[1641201207632,1.31842686,3809.8,3809.6,1.17810532]
[1641201208131,1.31842686,3809.8,3809.6,1.40809632]
[1641201208632,1.31842686,3809.8,3809.6,1.17810532]
[1641201208833,1.31842686,3809.8,3809.7,1.17810532]
[1641201209033,1.31842686,3809.8,3809.7,1.40809632]
[1641201209432,1.31842686,3809.8,3809.7,1.17810532]
[1641201210032,1.31842686,3809.8,3809.7,1.73628617]
[1641201210434,1.31842686,3809.8,3809.7,1.96627717]
[1641201210834,1.31842686,3809.8,3809.7,0.78817185]
[1641201211033,0.13614495,3809.8,3809.5,2.03893722]
[1641201211433,0.13614495,3809.8,3809.6,0.229991]
[1641201211634,0.13614495,3809.8,3809.7,1.18688738]
[1641201212237,0.13614495,3809.8,3809.7,1.41687838]
[1641201212438,0.13614495,3809.8,3809.7,1.18688738]
[1641201215140,0.13614495,3809.8,3809.7,1.41687838]
[1641201215342,0.13614495,3809.8,3809.7,1.18688738]
[1641201216042,1.31842686,3809.8,3809.7,1.18688738]
[1641201216441,1.18228191,3809.8,3809.7,1.18688738]
[1641201217443,1.18228191,3809.8,3809.7,12.44688738]
[1641201217841,1.18228191,3809.8,3809.7,1.18688738]
[1641201218044,0.13614495,3810.0,3809.7,1.18688738]
[1641201218045,0.13614495,3809.9,3809.7,11.26]
[1641201218444,0.13614495,3809.9,3809.8,0.55818085]
[1641201218644,0.13614495,3810.0,3809.8,0.55818085]
[1641201218844,5.246e-05,3810.1,3809.8,0.55818085]
[1641201219044,1.78519086,3810.4,3809.9,0.352347]
[1641201219244,1.78519086,3810.4,3809.9,11.612347]
[1641201219445,1.78519086,3810.4,3809.9,11.489991]
[1641201220045,1.78519086,3810.4,3810.0,0.128157]
[1641201220547,1.78519086,3810.4,3810.1,11.26]
[1641201220747,1.78519086,3810.4,3810.3,11.26]
[1641201220945,1.78519086,3810.4,3810.2,1.12000413]
[1641201221146,1.78519086,3810.6,3810.2,1.12000413]
[1641201221347,1.78519086,3810.6,3810.2,12.38000413]
[1641201221546,1.78519086,3810.6,3810.2,1.12000413]
[1641201222348,1.78519086,3810.6,3810.2,12.38000413]
[1641201224751,1.78519086,3810.7,3810.2,12.38000413]
[1641201225149,1.78519086,3810.7,3810.3,0.89001313]
[1641201225349,1.78519086,3810.7,3810.3,12.15001313]
[1641201228155,1.48781671,3810.4,3810.3,12.15001313]
[1641201228355,1.48781671,3810.4,3810.3,12.38000413]
[1641201228855,1.48781671,3810.4,3810.3,12.15001313]
[1641201229256,1.48781671,3810.4,3810.3,12.38000413]
[1641201229456,1.48781671,3810.4,3810.3,12.15001313]
[1641201231163,1.48781671,3810.4,3810.3,12.38000413]
[1641201232670,1.48781671,3810.4,3810.3,0.89001313]
[1641201235770,1.48781671,3810.4,3810.3,1.12000413]
[1641201235969,1.48781671,3810.4,3810.3,0.89001313]
[1641201237371,1.48781671,3810.5,3810.3,0.89001313]
[1641201238473,1.48781671,3810.5,3810.2,0.89001313]
[1641201238974,1.60640898,3810.5,3810.2,0.89001313]
[1641201239175,2.11850898,3810.5,3810.2,0.89001313]
[1641201239674,2.11850898,3810.5,3810.3,0.229991]
[1641201240175,1.48781671,3810.4,3810.2,0.89001313]
[1641201240977,1.60640898,3810.4,3810.2,0.89001313]
[1641201241575,1.60640898,3810.4,3810.3,0.229991]
[1641201242476,1.48781671,3810.4,3810.3,0.229991]
[1641201243777,1.48781671,3810.4,3810.2,0.89001313]
[1641201243976,1.48781671,3810.4,3810.3,0.229991]
[1641201244377,1.48781671,3810.5,3810.3,0.229991]
[1641201245281,0.11859227,3810.4,3810.3,1.67813878]
[1641201245780,0.11859227,3810.4,3810.3,1.44814778]
[1641201246083,0.11859227,3810.4,3810.3,1.67813878]
[1641201246283,1.48781671,3810.5,3810.3,1.67813878]
[1641201246686,2.97531809,3811.3,3810.4,12.882356]
[1641201246885,0.53302782,3811.1,3810.7,11.26]
[1641201247285,0.53302782,3811.1,3811.0,15.26958]
[1641201247485,0.53302782,3811.1,3811.0,15.499571]
[1641201247886,3.37251809,3811.3,3811.0,15.499571]
[1641201248290,1.18976675,3811.1,3811.0,15.499571]
[1641201248691,1.18976675,3811.1,3811.0,4.239571]
[1641201249189,0.3972,3811.3,3811.0,4.239571]
[1641201249389,0.3972,3811.3,3811.0,4.00958]
[1641201252194,0.3972,3811.3,3811.1,0.229991]
[1641201252390,0.3972,3811.3,3811.0,4.00958]
[1641201254293,0.3972,3811.3,3811.1,0.229991]
[1641201255198,2.18142332,3811.3,3811.1,0.229991]
[1641201256600,0.3972,3811.3,3811.1,0.229991]
[1641201256800,0.3972,3811.3,3811.0,4.00958]
[1641201257600,0.3972,3811.3,3811.1,0.229991]
[1641201257801,0.3972,3811.3,3811.0,15.26958]
[1641201258200,1.48687774,3811.1,3811.0,15.26958]
[1641201258400,1.48687774,3811.1,3811.0,4.00958]
[1641201259100,1.48687774,3811.2,3811.0,4.00958]
[1641201260002,1.48687774,3811.1,3811.0,4.00958]
[1641201260802,3.2022258,3811.1,3810.0,32.6859]
[1641201261004,1.5,3811.0,3810.0,32.6859]
[1641201261406,2.00479,3810.5,3810.0,32.6859]
[1641201261604,2.00479,3810.5,3809.9,11.26]
[1641201262605,2.00479,3810.5,3809.9,11.228]
[1641201263004,2.00479,3810.5,3809.7,13.26479]
[1641201265507,2.00479,3810.5,3809.8,0.128157]
[1641201267010,0.10952298,3810.4,3810.0,11.26]
[1641201267710,0.10952298,3810.4,3810.1,0.55817248]
[1641201269513,0.10952298,3810.4,3810.2,0.229991]
[1641201270113,0.10952298,3810.4,3810.1,0.55817248]
[1641201270715,0.10952298,3810.4,3810.3,0.55817248]
[1641201271317,0.10952298,3810.4,3810.1,0.55817248]
[1641201272117,0.10952298,3810.4,3810.2,0.229991]
[1641201272618,0.10952298,3810.4,3809.9,12.57360341]
[1641201272619,1.18967892,3810.2,3809.9,12.57360341]
[1641201272917,1.18967892,3810.2,3810.0,0.229991]
[1641201273120,1.18967892,3810.2,3810.0,11.489991]
[1641201273723,1.48705704,3810.3,3810.1,0.55817248]
[1641201274822,1.48705704,3810.3,3810.2,0.229991]
[1641201275323,1.59658002,3810.4,3810.2,0.229991]
[1641201275523,1.59658002,3810.4,3810.1,0.55817248]
[1641201275823,1.59658002,3810.4,3810.2,0.229991]
[1641201276023,0.10952298,3810.3,3810.2,0.78816348]
[1641201276222,0.10952298,3810.3,3810.2,0.55817248]
[1641201276727,0.10952298,3810.4,3810.2,0.55817248]
[1641201277725,0.10952298,3810.4,3810.1,0.55817248]
[1641201278527,1.59658002,3810.4,3810.1,0.55817248]
[1641201279531,1.48705704,3810.3,3810.1,0.55817248]
[1641201280930,1.48705704,3810.3,3810.2,0.88948606]
[1641201281932,0.10952298,3810.4,3810.1,0.88948606]
[1641201283133,1.48796624,3810.2,3810.1,0.88948606]
[1641201285036,1.48796624,3810.2,3810.0,0.88948606]
[1641201285437,2.03256624,3810.2,3810.0,0.88948606]
[1641201285838,2.03256624,3810.2,3809.9,0.88948606]
[1641201286040,1.48796624,3810.1,3809.9,1.44765854]
[1641201286941,1.48796624,3810.1,3809.9,1.67764954]
[1641201287144,1.48796624,3810.1,3809.9,1.44765854]
[1641201287342,1.48796624,3810.0,3809.9,0.88948606]
[1641201288345,1.48796624,3810.0,3809.8,1.44765854]
[1641201288744,1.48796624,3810.0,3809.8,0.88948606]
[1641201289443,1.48796624,3810.0,3809.8,1.11947706]
[1641201289746,1.48796624,3810.0,3809.8,1.44773882]
[1641201290445,1.59748922,3810.1,3809.9,0.88948606]
[1641201292248,0.78744012,3809.9,3809.6,1.18544641]
[1641201292550,2.81247547,3809.7,3809.6,1.18544641]
[1641201292747,1.31247547,3809.7,3809.3,1.48171702]
[1641201292949,0.78748771,3809.6,3809.5,1.18677937]
[1641201293150,0.78748771,3809.6,3809.2,1.48171702]
[1641201293849,2.00479,3809.3,3809.2,1.48171702]
[1641201294051,2.57889,3809.3,3808.9,1.77676135]
[1641201294249,2.57889,3809.3,3808.6,2.221103]
[1641201294651,2.57889,3809.3,3808.4,12.74527794]
[1641201295450,2.57889,3809.3,3808.4,11.26]
[1641201298753,0.85601222,3809.2,3808.4,11.26]
[1641201300956,0.85601222,3809.2,3808.3,2.00479]
[1641201301558,0.85601222,3809.2,3808.3,13.26479]
[1641201301759,4.00958,3808.4,3807.2,2.00479]
[1641201301957,4.00958,3808.4,3807.2,3.86738434]
[1641201302158,1.9659251,3808.3,3807.4,11.26]
[1641201302358,1.9659251,3808.3,3807.2,3.31738434]
[1641201302564,2.6407251,3808.3,3807.2,2.00479]
[1641201303160,2.6407251,3808.3,3807.3,11.26]
[1641201303763,2.00479,3808.0,3807.3,11.26]
[1641201303962,2.00479,3808.0,3807.2,2.00479]
[1641201305064,2.00479,3808.0,3807.2,13.26479]
[1641201305462,2.00479,3808.0,3807.2,2.00479]
[1641201307462,1.89446186,3807.9,3807.2,2.00479]
[1641201307666,1.89446186,3807.9,3806.6,32.6968]
[1641201307865,2.00479,3807.2,3806.6,32.6968]
[1641201308063,2.80589,3807.2,3806.6,32.6968]
[1641201308264,2.80589,3807.2,3806.4,1.18267864]
[1641201309267,2.80589,3807.2,3806.4,1.31083564]
[1641201309467,2.80589,3807.2,3806.4,0.128157]
[1641201311169,2.80589,3807.2,3806.5,11.26]
[1641201314773,2.80589,3807.2,3806.5,11.388157]
[1641201316073,2.80589,3807.2,3806.4,11.26]
[1641201316475,2.80589,3807.2,3806.4,12.1483572]
[1641201316877,2.80589,3807.2,3806.5,0.128157]
[1641201317477,2.00479,3807.2,3806.6,11.26]
[1641201321280,2.00479,3807.2,3806.5,0.128157]
[1641201323380,2.76549,3807.2,3806.5,0.128157]
[1641201323781,2.76549,3807.2,3806.4,11.26]
[1641201323982,2.00479,3806.8,3806.4,11.26]
[1641201325280,2.00479,3806.8,3806.4,0.0001]
[1641201325481,1.5,3806.5,3805.6,0.8883572]
[1641201325683,0.122356,3806.7,3805.4,0.8883572]
[1641201325684,1.5,3806.1,3805.4,0.8883572]
[1641201325882,2.00479,3805.5,3805.4,0.8883572]
[1641201326085,2.00479,3805.5,3805.4,1.1183482]
[1641201326282,2.00479,3805.5,3805.4,0.8883572]
[1641201327681,2.00479,3805.5,3805.1,1.18267864]
[1641201327884,2.00479,3805.5,3804.5,0.88589935]
[1641201327885,2.00479,3805.2,3804.5,0.88589935]
[1641201328084,2.73429,3805.2,3804.5,0.88589935]
[1641201328284,2.00479,3805.5,3804.5,2.51405635]
[1641201328586,1.31348914,3806.8,3804.6,1.31348914]
[1641201328783,1.31348914,3806.8,3804.8,12.76]
[1641201328984,2.81348914,3806.8,3804.8,11.26]
[1641201329184,1.5,3806.5,3804.6,1.31348914]
[1641201329384,0.78816631,3806.4,3804.6,1.31348914]